[Event "Mitropa Cup Women 2022"]
[Site "Corte"]
[Date "2022.05.08"]
[Round "9.3"]
[White "Sikorova, Olga"]
[Black "Berke, Ana"]
[Result "1/2-1/2"]
[ECO "A04"]
[WhiteElo "2173"]
[BlackElo "2150"]
[Annotator "TA"]
[PlyCount "123"]
[EventDate "2022.04.30"]
[EventType "team-tourn"]
[EventCountry "FRA"]
[SourceTitle "playchess.com"]
[Source "ChessBase"]
[SourceQuality "1"]
[WhiteTeam "Czech Republic"]
[BlackTeam "Croatia"]
[WhiteTeamCountry "CZE"]
[BlackTeamCountry "CRO"]
[TimeControl "40/5400+30:1800+30"]

{[%evp 17,123,15,26,18,30,26,43,40,29,6,7,0,20,0,10,6,22,22,22,22,22,15,25,27,147,23,23,22,22,34,277,10,11,11,11,14,16,0,0,0,0,0,0,0,0,0,0,0,0,0,0,0,0,0,0,0,0,0,0,0,0,0,0,0,0,0,0,0,0,0,0,0,0,0,0,0,0,0,0,0,0,0,0,0,0,0,0,0,0,0,0,0,0,0,0,0,0,0,0,0,0,0,0,0,0,0,0,0]} 1. Nf3 {[%emt 0:00:05]} c5 {[%emt 0:00:21]} 2. c4 {[%emt 0:00:07]} Nc6 {[%emt 0:00:11]} 3. Nc3 {[%emt 0:00:10]} e5 {[%emt 0:00:22]} 4. e3 {[%emt 0:00:10]} Nf6 {[%emt 0:00:34]} 5. d4 {[%emt 0:00:07]} cxd4 {[%emt 0:00:06]} 6. exd4 {[%emt 0:00:03]} e4 {[%emt 0:00:27]} 7. Ne5 {[%emt 0:00:13]} Bb4 {[%emt 0:00:25]} 8. Be2 {[%emt 0:00:22]} Qa5 {[%emt 0:01:12]} 9. Nxc6 {[%emt 0:00:20]} dxc6 {[%emt 0:00:20]} 10. O-O {[%emt 0:10:28] A34: Symmetrical English: 2 Nc3, lines with ...d5.} O-O {[%emt 0:03:24]} 11. Bd2 Re8 12. a3 {[%emt 0:01:29] White is slightly better.} Bxc3 {[%emt 0:03:05]} 13. Bxc3 Qg5 {[%emt 0:00:26] Strongly threatening ...Bh3.} 14. Qc1 {[%emt 0:05:01]} Qg6 {[#] White must now prevent ...Bh3.} 15. Qf4 {[%emt 0:09:39]} Bg4 {[%emt 0:07:14]} 16. Bxg4 {[%emt 0:01:32] [#]} Nxg4 $146 {[%emt 0:02:23]} ({Predecessor:} 16... Qxg4 17. Qxg4 Nxg4 18. h3 Nf6 19. Rad1 Nh5 20. d5 cxd5 21. cxd5 Nf4 22. f3 Rad8 23. fxe4 Rxe4 {½-½ (47) Teverovski,B (2045)-Duttagupta,A (1829) FICGS email 2016}) 17. h3 {[%emt 0:02:07]} Nf6 {[%emt 0:02:30]} 18. Rad1 $36 {[%emt 0:15:29][%mdl 2048] White has good play.} Rad8 {[%emt 0:11:38] Prevents d5.} 19. Rfe1 {[%emt 0:05:07]} b5 20. d5 {[%cal Bd4d5,Bd5c6,Bc6d7][%mdl 32]} bxc4 {[%emt 0:16:34]} (20... cxd5 $11 21. cxb5 Nh5) 21. Bxf6 {[%emt 0:02:53]} ({Only move:} 21. dxc6 $16 {aiming for Rxd8.} Nd5 22. Qg4 Qxg4 23. hxg4 Nxc3 24. Rxd8 (24. bxc3 Rc8 $14) 24... Rxd8 25. bxc3) 21... Qxf6 $11 {[%emt 0:04:49]} 22. Qxf6 {[%emt 0:00:22][%mdl 64] [#] Remove Defender} gxf6 {[%emt 0:00:05]} 23. dxc6 {[%emt 0:00:20][%mdl 4096] Endgame Hoping for Rxd8. KRR-KRR} f5 $2 {[%emt 0:07:28]} ({Black should try} 23... Rc8 $14) 24. Rd7 $2 {[%emt 0:03:38]} ({White has to play} 24. Rxd8 $18 Rxd8 25. Rc1) 24... Rxd7 {[%emt 0:08:34] The position is equal.} 25. cxd7 {[%emt 0:00:04] KR-KR} Rd8 {[%emt 0:00:04]} 26. Rd1 {[%emt 0:06:12]} Kf8 $1 {[%emt 0:07:11]} 27. g4 {[%emt 0:08:52]} Ke7 {[%emt 0:10:17]} 28. Rd4 {[%emt 0:07:14]} Rxd7 {[%emt 0:00:51]} 29. Rxc4 {[%emt 0:00:07]} Rd2 {[%emt 0:02:28]} 30. gxf5 {[%emt 0:00:53]} Rxb2 {[%emt 0:00:59]} 31. Rxe4+ {[%emt 0:00:07]} Kf6 {[%emt 0:00:14]} 32. Ra4 {[%emt 0:00:33]} Rb7 {[%emt 0:00:27]} 33. Ra5 {[%emt 0:01:09]} Kg5 {[%emt 0:01:36]} 34. Kg2 {[%emt 0:01:27]} f6 {[%emt 0:02:03]} 35. Kg3 {[%emt 0:01:14]} Rc7 {[%emt 0:02:44]} ({Don't take} 35... Rb3+ 36. f3 $16) 36. h4+ {[%emt 0:01:46]} Kh5 {[%emt 0:01:49]} 37. Ra6 {[%emt 0:01:23]} Rg7+ {[%emt 0:01:16]} 38. Kf3 {[%emt 0:05:17]} Kxh4 {[%emt 0:02:14]} 39. Rxf6 {[%emt 0:00:02]} Kg5 {[%emt 0:00:46]} 40. Rf8 {[%emt 0:01:19]} h5 {[%emt 0:02:08]} 41. Kg3 {[%emt 0:23:10]} h4+ {[%emt 0:02:04]} 42. Kh3 {[%emt 0:02:00]} Rc7 {[%emt 0:07:07]} 43. Rg8+ {[%emt 0:00:47]} Kh5 {[%emt 0:02:49]} 44. Rh8+ {[%emt 0:15:11]} Kg5 {[%emt 0:00:22]} 45. Rg8+ {[%emt 0:00:29]} Kh5 {[%emt 0:00:22]} 46. Kg2 {[%emt 0:01:41]} Rf7 {[%emt 0:01:15]} 47. f4 {And now Rg5+ would win.} Rxf5 {[%emt 0:01:57]} 48. Kf3 {[%emt 0:02:09]} Ra5 {[%emt 0:01:34]} 49. Rh8+ {[%emt 0:00:01]} Kg6 {[%emt 0:00:10]} 50. Kg4 {[%emt 0:00:26]} Rxa3 {[%emt 0:00:35]} 51. Rxh4 {[%emt 0:00:03]} Ra5 {[%emt 0:00:43]} 52. Rh8 {[%emt 0:01:05]} Kf6 {[%emt 0:01:50]} 53. Rh6+ {[%emt 0:00:16]} Kf7 {[%emt 0:00:13]} 54. Rc6 {[%emt 0:00:12]} Rb5 {[%emt 0:00:58]} 55. Rc7+ {[%emt 0:00:06]} Kf6 {[%emt 0:00:07]} 56. Rxa7 {[%emt 0:00:05]} Rc5 {[%emt 0:00:12]} 57. Ra6+ {[%emt 0:00:19]} Kf7 {[%emt 0:00:10]} 58. Rd6 {[%emt 0:00:10]} Ra5 {[%emt 0:00:13]} 59. Kf3 {[%emt 0:00:23]} Ra3+ {[%emt 0:01:46]} 60. Kg4 {[%emt 0:00:16]} Ra5 {[%emt 0:00:05]} 61. Rb6 {[%emt 0:00:03]} Rc5 {[%emt 0:00:04]} 62. Ra6 {[%emt 0:01:22] Weighted Error Value: White=0.17 (very precise) /Black=0.16 (very precise)} 1/2-1/2

[Event "Mitropa Cup Women 2022"]
[Site "Corte"]
[Date "2022.05.08"]
[Round "9.3"]
[White "Sankova, Stella"]
[Black "Pellicoro, Nathalie"]
[Result "1-0"]
[ECO "C55"]
[WhiteElo "2055"]
[BlackElo "1898"]
[Annotator "TA"]
[PlyCount "79"]
[EventDate "2022.04.30"]
[EventType "team-tourn"]
[EventCountry "FRA"]
[SourceTitle "playchess.com"]
[Source "ChessBase"]
[SourceQuality "1"]
[WhiteTeam "Slovakia"]
[BlackTeam "Switzerland"]
[WhiteTeamCountry "SVK"]
[BlackTeamCountry "SUI"]
[TimeControl "40/5400+30:1800+30"]

{[%evp 12,79,20,0,15,0,49,38,35,42,58,31,43,10,72,32,84,83,99,98,127,140,140,129,145,140,140,140,169,168,272,174,234,229,268,277,239,245,422,416,429,410,380,302,462,375,392,292,332,302,851,774,1024,983,997,1010,945,990,1000,965,1951,1951,1831,1612,6403,6279,5999,6203,5481,5418]} 1. e4 {[%emt 0:00:02]} e5 {[%emt 0:00:09]} 2. Nf3 {[%emt 0:00:05]} Nc6 {[%emt 0:00:10]} 3. Bc4 {[%emt 0:00:05]} Nf6 {[%emt 0:00:11]} 4. d3 {[%emt 0:00:04]} Be7 {[%emt 0:00:12]} 5. Nbd2 {[%emt 0:00:29]} O-O {[%emt 0:01:46]} 6. c3 {[%emt 0:00:15]} d5 {[%emt 0:03:05]} 7. Bb3 {[%emt 0:00:04]} dxe4 {[%emt 0:03:31] 7...Be6 might become the main line. C55: Two Knights: 4 d3, 4 d4 exd4 5 e5 and Max Lange Attack.} 8. dxe4 {[%emt 0:00:07]} Bg4 {[%emt 0:01:21]} (8... Bc5 $11 {should be considered.}) 9. h3 $14 {[%emt 0:00:28]} Bh5 {[%emt 0:01:31] White is slightly better.} 10. Qe2 {[%emt 0:00:40]} Qd7 {[%emt 0:07:37]} 11. Nf1 {[%emt 0:03:37] [#]} Bg6 $146 {[%emt 0:01:11]} ({Predecessor:} 11... Rad8 12. Bc2 h6 13. g4 Bg6 14. Ng3 Nh7 15. Bd2 Rfe8 16. O-O-O Bd6 17. h4 f6 {1-0 (32) Khachatourian,Y (1921)-Brun,N (1557) Fagernes 2011}) 12. Bc2 {[%emt 0:03:18]} h6 {[%emt 0:02:05]} (12... Nh5 $11 {remains equal.}) 13. g4 {[%emt 0:03:40]} Rfe8 {[%emt 0:02:31]} (13... a5 $14) 14. Ng3 $16 {[%emt 0:02:39] White leaves nothing to chance now.} Rad8 {[%emt 0:04:43]} 15. Nh4 {[%emt 0:10:45]} Bh7 {[%emt 0:16:26][%cal Of6e4] [#]} 16. Nhf5 $1 {[%emt 0:04:34]} Bf8 {[%emt 0:01:46]} 17. Qf3 {[%emt 0:20:53][%cal Of5h6]} Ne7 {[%emt 0:18:04] [#]} 18. Nxh6+ {[%emt 0:03:46][%mdl 512]} gxh6 {[%emt 0:00:06]} 19. Qxf6 {[%emt 0:00:06] Strongly threatening Nf5.} Bg7 {[%emt 0:00:18]} 20. Qf3 {[%emt 0:00:39]} Qb5 {[%emt 0:07:22]} (20... Ng6 $142 21. O-O Nf4) 21. Nf5 {[%emt 0:08:32]} Nxf5 {[%emt 0:02:39]} (21... Ng6 $142 22. a4 (22. Bxh6 Qxb2 23. O-O Bxh6 $16) 22... Qc4) 22. gxf5 $40 {[%emt 0:00:09][%mdl 128] White goes for the king.} Rd6 {[%emt 0:00:44]} 23. Rg1 {[%emt 0:04:27]} Kh8 {[%emt 0:00:39]} 24. Qe2 {[%emt 0:00:24]} Qa5 {[%emt 0:03:41]} (24... a6 25. Bb3 (25. Qg4 Rg8 $18) 25... Qxe2+ 26. Kxe2 f6) 25. Bb3 {[%emt 0:02:56]} (25. Qg4 Bf8 26. Bb3 Red8 $18) 25... Red8 {[%emt 0:03:27]} 26. Be3 {[%emt 0:01:20]} (26. Qg4 Bf8 27. Kf1 (27. Bxf7 R8d7 $11) 27... Qa6+ 28. Kg2 c5 29. Bxf7 R8d7 $18) 26... R8d7 {[%emt 0:04:33]} 27. Kf1 {[%emt 0:06:04]} ({But not} 27. Qg4 Bf8 28. Qe2 c6 $18) 27... c6 {[%emt 0:00:42]} (27... Qa6 $142 28. Bc4 Qa4) 28. Kg2 {[%emt 0:00:40]} ({Not} 28. Qg4 Bf8 29. Qh5 Rf6 $18) 28... Qd8 {[%emt 0:01:08]} 29. Rad1 {[%emt 0:03:09]} Qh4 {[%emt 0:04:03]} 30. Qg4 {[%emt 0:06:06] Active counter play!} ({Don't play} 30. Bxa7 Rxd1 31. Rxd1 Rxd1 $18) 30... Qe7 {[%emt 0:01:21]} (30... Qxg4+ 31. hxg4 Rxd1) 31. Bc5 {[%emt 0:02:38] White is clearly winning.} b6 {[%emt 0:01:40]} 32. Bxd6 {[%emt 0:00:34]} Rxd6 {[%emt 0:00:09]} 33. Rxd6 {[%emt 0:01:43]} Qxd6 {[%emt 0:00:05]} 34. Bxf7 {[%emt 0:01:35]} Qe7 {[%emt 0:01:11]} 35. Be6 {[%emt 0:01:46]} Bg8 {[%emt 0:02:10]} 36. Bxg8 {[%emt 0:00:39][%cal Og4g6] And now Qg6! would win.} Kxg8 {[%emt 0:00:05]} 37. Kf3 {[%emt 0:00:22]} Qf6 {[%emt 0:00:36] [#]} 38. Qxg7+ $1 {[%emt 0:01:14]} Qxg7 {[%emt 0:00:07]} 39. Rxg7+ {[%emt 0:00:02]} Kxg7 {[%emt 0:00:09]} 40. Kg4 {[%emt 0:00:09] Weighted Error Value: White=0.23 (precise) /Black=0.42} 1-0

[Event "Mitropa Cup Women 2022"]
[Site "Corte"]
[Date "2022.05.08"]
[Round "9.4"]
[White "Gueci, Tea"]
[Black "Demeter, Dorina"]
[Result "1/2-1/2"]
[ECO "C84"]
[WhiteElo "2248"]
[BlackElo "2235"]
[Annotator "TA"]
[PlyCount "104"]
[EventDate "2022.04.30"]
[EventType "team-tourn"]
[EventCountry "FRA"]
[SourceTitle "playchess.com"]
[Source "ChessBase"]
[SourceQuality "1"]
[WhiteTeam "Italy"]
[BlackTeam "Hungary"]
[WhiteTeamCountry "ITA"]
[BlackTeamCountry "HUN"]
[TimeControl "40/5400+30:1800+30"]

{[%evp 18,104,0,0,1,8,9,0,11,12,14,11,11,8,17,11,7,8,51,15,87,90,125,133,116,58,45,42,54,54,124,108,116,90,91,91,91,91,84,84,92,84,84,84,99,101,102,81,148,141,141,141,150,8,8,0,0,0,0,0,0,0,0,0,0,0,0,0,0,0,0,0,0,0,0,0,0,0,0,0,0,0,0,0,0,0,0,0,0]} 1. e4 {[%emt 0:00:03]} e5 {[%emt 0:00:08]} 2. Nf3 {[%emt 0:00:04]} Nc6 {[%emt 0:00:06]} 3. Bb5 {[%emt 0:00:04]} a6 {[%emt 0:00:09]} 4. Ba4 {[%emt 0:00:04]} Nf6 {[%emt 0:00:13]} 5. O-O {[%emt 0:00:07]} Be7 {[%emt 0:00:07]} 6. d3 {[%emt 0:00:08]} b5 {[%emt 0:01:07]} 7. Bb3 {[%emt 0:00:05]} d6 {[%emt 0:00:24]} 8. a3 {[%emt 0:00:08]} O-O {[%emt 0:02:54]} 9. Nc3 {[%emt 0:00:08]} Bg4 {[%emt 0:04:52]} 10. Be3 {[%emt 0:00:23]} Nd4 {[%emt 0:01:50] C84: Closed Ruy Lopez: Unusual White 6th moves.} 11. Bxd4 {[%emt 0:00:20]} exd4 {[%emt 0:00:13]} 12. Nd5 {[%emt 0:00:11]} c5 {[%emt 0:06:57] 12...Nxd5 gains popularity.} 13. h3 {[%emt 0:05:46]} Be6 {[%emt 0:02:20]} 14. Nxf6+ {[%emt 0:03:23]} Bxf6 {[%emt 0:01:01]} 15. Bxe6 {[%emt 0:03:56]} fxe6 {[%emt 0:00:06]} 16. a4 {[%emt 0:07:11]} Qd7 {[%emt 0:08:27]} 17. b3 {[%emt 0:05:45] [#]} Ra7 $146 {[%emt 0:07:33]} ({Predecessor:} 17... Be7 18. Qe2 Qe8 19. g3 Qf7 20. Kg2 e5 21. h4 Qe6 22. Nd2 Qg6 23. Rh1 h5 {1-0 (35) Chigaev,M (2588)-Kondakov,A (1986) Chess.com INT 2020}) 18. Nh2 {[%emt 0:14:58]} (18. e5 $5 dxe5 19. Re1 $14) 18... Bg5 {[%emt 0:06:52]} (18... Rc7 $11) 19. Qg4 $16 {[%emt 0:13:40]} Bd2 {[%emt 0:03:12]} 20. axb5 {[%emt 0:01:57]} a5 {[%emt 0:00:58] [#]} 21. Nf3 {[%emt 0:09:14]} (21. Rad1 $1 $16 {[%cal Rd1d2]} Bb4 22. f4) 21... Bc3 $14 {[%emt 0:02:23]} 22. Ra2 {[%emt 0:00:24]} Rb7 {[%emt 0:08:56]} 23. Ng5 {[%emt 0:05:49]} Rf6 {[%emt 0:02:44]} (23... Re8 $14) 24. e5 $16 {[%emt 0:05:22]} dxe5 {[%emt 0:02:09]} 25. Qe4 {[%emt 0:02:32]} Rg6 {[%emt 0:14:30]} 26. Nf3 {[%emt 0:00:41]} ({Much weaker is} 26. Qxe5 $6 Qd5 27. Qxd5 exd5 $11) 26... Qd5 {[%emt 0:01:42]} 27. Nxe5 {[%emt 0:01:27]} (27. b6 {is more complex.} Rh6 28. Nxe5 Rxb6 29. Ra4) 27... Qxe4 {[%emt 0:04:18]} 28. dxe4 {[%emt 0:00:07]} Rh6 {[%emt 0:03:58]} 29. Rd1 {[%emt 0:04:58]} Rxb5 {[%emt 0:01:15]} 30. Ra4 {[%emt 0:00:52]} Rh5 {[%emt 0:04:28]} 31. Nd3 {[%emt 0:03:14] White is more active.} Bb4 {[%emt 0:02:49]} 32. Kh2 {[%emt 0:03:34]} e5 {[%emt 0:01:30]} (32... Rh6 $142) 33. g4 {[%emt 0:01:52]} Rh6 {[%emt 0:00:02]} 34. Nxe5 {[%emt 0:03:40]} Re6 {[%emt 0:00:16] [#]} 35. f4 {[%emt 0:02:46]} ({Only move:} 35. Nc4 $1 $16) 35... g5 $11 {[%emt 0:00:01] The position is equal.} 36. Kg3 {[%emt 0:00:49]} Rb8 {[%emt 0:01:56] Strongly threatening ...gxf4+.} 37. Nd3 {[%emt 0:02:19] Black must now prevent e5.} Rxe4 {[%emt 0:00:53] And now ...Re3+ would win.} 38. fxg5 {[%emt 0:00:37]} ({Much worse is} 38. Nxb4 gxf4+ 39. Kf3 Re3+ 40. Kxf4 axb4 $15) 38... Re3+ {[%emt 0:00:11]} 39. Kh4 {[%emt 0:00:33]} Rf8 {[%emt 0:01:33] Prevents Rf1.} 40. Nxb4 {[%emt 0:00:26]} Rff3 {[%emt 0:03:37][%csl Ge3][%cal Rf3h3]} 41. Rh1 {[%emt 0:04:16]} axb4 {[%emt 0:02:21][%mdl 4096] Endgame KRR-KRR} 42. Ra7 {[%emt 0:04:33]} d3 {[%emt 0:13:26]} 43. cxd3 {[%emt 0:02:32]} Rxd3 {[%emt 0:00:13]} 44. Rc7 {[%emt 0:02:29]} Rxb3 {[%emt 0:04:57]} 45. Rxc5 {[%emt 0:01:03]} Rbc3 46. Rb5 b3 {[%emt 0:03:12]} 47. Rb7 {[%emt 0:05:28]} Rcd3 {[%emt 0:02:20]} 48. g6 {[%emt 0:04:16]} h6 {[%emt 0:02:02]} 49. g5 {[%emt 0:00:44]} hxg5+ {[%emt 0:03:43]} 50. Kxg5 {[%emt 0:00:28] h4 is the strong threat.} Rxh3 {[%emt 0:00:37]} 51. Rb8+ {[%emt 0:03:25]} Kg7 {[%emt 0:00:02]} 52. Rb7+ {[%emt 0:00:05]} Kg8 {[%emt 0:00:08] Weighted Error Value: White=0.11 (very precise) /Black=0.10 (very precise)} 1/2-1/2

[Event "Mitropa Cup Women 2022"]
[Site "Corte"]
[Date "2022.05.08"]
[Round "9.4"]
[White "Radikovic, Anamarija"]
[Black "Koubova, Anna Marie"]
[Result "0-1"]
[ECO "C07"]
[WhiteElo "2133"]
[BlackElo "2115"]
[Annotator "TA"]
[PlyCount "114"]
[EventDate "2022.04.30"]
[EventType "team-tourn"]
[EventCountry "FRA"]
[SourceTitle "playchess.com"]
[Source "ChessBase"]
[SourceQuality "1"]
[WhiteTeam "Croatia"]
[BlackTeam "Czech Republic"]
[WhiteTeamCountry "CRO"]
[BlackTeamCountry "CZE"]
[TimeControl "40/5400+30:1800+30"]

{[%evp 14,114,12,7,10,0,10,0,0,0,0,0,0,0,0,0,0,0,0,0,0,-43,-40,-37,-41,-39,-41,-44,-35,-29,-37,-39,-29,-37,-35,-33,-33,-33,-35,-42,-31,-59,-13,-86,-55,-38,-31,-112,0,0,0,0,0,0,191,168,185,103,126,0,0,0,25,33,43,0,0,0,0,0,0,0,0,-4,0,0,0,0,0,0,0,0,0,-12836,-12836,-12838,-12839,-12844,-12844,-12845,-12845,-12846,-12847,-12847,-12847,-12850,-12850,-12850,-27999,-27999,-27999,-27999,-27999]} 1. e4 {[%emt 0:00:54]} e6 {[%emt 0:00:17]} 2. d4 {[%emt 0:00:11]} d5 {[%emt 0:00:14]} 3. Nd2 {[%emt 0:00:05]} c5 {[%emt 0:00:38]} 4. Ngf3 {[%emt 0:00:04]} cxd4 {[%emt 0:00:34]} 5. Nxd4 {[%emt 0:00:06]} Nc6 {[%emt 0:00:09]} 6. Bb5 {[%emt 0:00:05]} Bd7 {[%emt 0:00:13]} 7. Nxc6 {[%emt 0:00:10]} bxc6 {[%emt 0:00:11]} 8. Bd3 {[%emt 0:00:05]} Bd6 {[%emt 0:00:18] C07: French Tarrasch: 3...c5, 4 Ngf3 and 4 exd5 Qxd5.} 9. Qe2 {[%emt 0:00:07]} e5 $1 {[%mdl 4] is currently scoring better than 9...Ne7.} 10. c4 d4 {[%emt 0:01:57] The position is equal.} 11. c5 {[%emt 0:00:36]} Bxc5 {[%emt 0:01:15]} 12. Nc4 {[%emt 0:00:06]} Bb4+ {[%emt 0:03:05]} 13. Bd2 {[%emt 0:00:06]} Qe7 {[%emt 0:01:49]} 14. O-O {[%emt 0:00:28]} Bxd2 {[%emt 0:07:25]} 15. Qxd2 {[%emt 0:00:06]} Nh6 {[%emt 0:01:54][%cal Bg8h6,Bh6f7,Bf7d8][%mdl 32] [#]} 16. Qa5 $146 {[%emt 0:10:47]} ({Predecessor:} 16. f4 Ng4 17. h3 Ne3 18. Nxe3 dxe3 19. Qxe3 exf4 20. Qxf4 O-O 21. Rac1 Qb4 22. Bc4 Qxb2 23. Bxf7+ {½-½ (50) Raja,H (2459)-Sturt,R (2494) Banja Vrujci 2021}) 16... f6 {[%emt 0:15:52]} 17. Rac1 {[%emt 0:03:51]} (17. f4 $5 {[%cal Rf4e5]}) 17... O-O {[%emt 0:01:33]} 18. Rc2 {[%emt 0:01:16]} Nf7 {[%emt 0:03:00]} 19. Rfc1 {[%emt 0:02:52]} Rfb8 {[%emt 0:02:03]} 20. Qd2 {[%emt 0:04:24]} Qb4 {[%emt 0:09:36]} 21. Qxb4 {[%emt 0:12:04]} Rxb4 {[%emt 0:03:48]} 22. Na5 {[%emt 0:00:05]} Nd8 {[%emt 0:06:02]} 23. b3 {[%emt 0:01:03]} Kf8 {[%emt 0:04:00]} 24. a3 {[%emt 0:04:41]} Rb6 {[%emt 0:05:37]} 25. b4 {[%emt 0:00:13]} Ke7 {[%emt 0:01:21]} 26. Kf1 {[%emt 0:12:16]} g6 {[%emt 0:22:31]} 27. g3 {[%emt 0:13:45]} Rc8 {[%emt 0:03:58]} (27... Nb7 $15 28. Nc4 (28. Nxc6+ Kd6 $17) 28... c5 $1) 28. b5 {[%emt 0:11:23]} (28. h4 $11 {remains equal.}) 28... c5 {[%emt 0:00:25]} 29. a4 {[%emt 0:01:20]} Ne6 {[%emt 0:04:18][%cal Oa7a6]} 30. Bc4 {[%emt 0:03:55]} (30. Ke2 $15) 30... Kd6 {[%emt 0:00:47]} ({Black should try} 30... a6 $1 $17 {[%cal Ra6b5]} 31. bxa6 Nc7) 31. Bd5 $11 {[%emt 0:01:34]} Rbb8 {[%emt 0:00:16]} 32. Ke2 {[%emt 0:04:15]} Nd8 33. f4 {[%emt 0:00:30]} a6 $2 {[%emt 0:01:05]} (33... exf4 $11 34. gxf4 Rc7) 34. fxe5+ {[%emt 0:02:05]} fxe5 {[%emt 0:00:24]} 35. Nc4+ {[%emt 0:00:55]} (35. bxa6 $18 Rc7 36. Nc4+ Ke7 37. Nxe5) 35... Ke7 $16 {[%emt 0:00:17]} 36. Nxe5 {[%emt 0:01:26]} ({White must play} 36. bxa6 $16 {Hoping for a7.} Rb4 37. Nxe5 Rxa4 38. Nxd7 (38. Rxc5 Bb5+ 39. Kd2 Rxc5 $14) 38... Kxd7 39. Rxc5 Rxc5 40. Rxc5) 36... axb5 $11 {[%emt 0:00:30]} 37. Rxc5 {[%emt 0:04:56]} Rxc5 {[%emt 0:00:41]} (37... bxa4 $5 {[%cal Rc8c5]} 38. Rc7 Kd6 39. Rxd7+ Kxe5 40. Rxc8 Rxc8 $11) 38. Rxc5 {[%emt 0:00:06] aiming for Rc7.} bxa4 {[%emt 0:00:19]} 39. Nxd7 {[%emt 0:02:12]} (39. Rc7 $5 {[%cal Rc7d7]} Kd6 40. Rxd7+ Kxe5 41. Rxh7 $16) 39... Kxd7 $16 {[%emt 0:00:05][%mdl 4096] Endgame KRB-KRN} 40. Rc4 {[%emt 0:02:19]} a3 {[%emt 0:01:25]} 41. Rxd4 {[%emt 0:07:41]} Rb2+ {[%emt 0:03:31]} 42. Rd2 {[%emt 0:02:38]} Kd6 {[%emt 0:08:33] And now ...Nc6 would win.} 43. Kd1 {[%emt 0:05:10]} Rxd2+ {[%emt 0:01:04]} 44. Kxd2 $11 {[%emt 0:00:07] KB-KN} Ne6 {[%emt 0:00:22]} 45. Kc3 {[%emt 0:01:44]} Ke5 {[%emt 0:01:50]} 46. Kb4 {[%emt 0:02:40]} Ng5 {[%emt 0:01:23]} 47. Kxa3 {[%emt 0:00:25]} Nxe4 {[%emt 0:00:18]} 48. Bc6 {[%emt 0:02:43][%mdl 8192] [#]} (48. Bc4 $11) 48... Nd2 $1 $19 {[%emt 0:04:48]} 49. Bg2 {[%emt 0:02:47] [#]} Kf5 $1 {[%emt 0:00:48]} 50. h3 {[%emt 0:05:25]} Ne4 {[%emt 0:01:48]} 51. g4+ {[%emt 0:03:26]} Kf4 {[%emt 0:00:10]} 52. Kb3 {[%emt 0:00:05]} Nf2 {[%emt 0:01:11]} 53. Bd5 {[%emt 0:01:03]} Nxh3 {[%emt 0:00:33]} 54. Bg8 {[%emt 0:00:05]} Ng5 {[%emt 0:00:27]} 55. Kc2 {[%emt 0:00:57]} Kxg4 {[%emt 0:00:30]} 56. Kd2 {[%emt 0:00:06]} Kg3 {[%emt 0:02:01]} 57. Ke1 {[%emt 0:00:14]} h5 {[%emt 0:02:48] Black used his chance.  Weighted Error Value: White=0.27 (precise) /Black=0.13 (very precise)} 0-1